bitfinex-derivatives/quotes_SOLF0:USTF0_20250626
["timestamp","ask_amount","ask_price","bid_price","bid_amount"]
[1750980168982,90.88779148,139.12,139.04,3.73688159]
[1750980169277,5.16208604,139.11,139.05,36.82]
[1750980169478,5.16208604,139.11,139.05,44.0086]
[1750980169684,5.16208604,139.11,139.05,36.82]
[1750980170183,90.88779148,139.12,139.05,36.82]
[1750980170483,7.1873,139.08,139.05,36.82]
[1750980171775,7.1873,139.08,139.05,44.0085]
[1750980172176,7.1867,139.09,139.05,44.0085]
[1750980172578,7.1863,139.1,139.06,3.73688159]
[1750980173078,87.15090989,139.12,139.08,10.92388159]
[1750980173274,87.15090989,139.12,139.09,36.72]
[1750980173275,94.33610989,139.12,139.09,36.72]
[1750980174083,7.1847,139.13,139.1,3.73688159]
[1750980174281,6.13048159,139.17,139.1,3.73688159]
[1750980175182,7.1847,139.13,139.1,3.73688159]
[1750980175684,6.13048159,139.17,139.1,3.73688159]
[1750980175685,7.185,139.12,139.1,3.73688159]
[1750980176090,6.13048159,139.17,139.1,3.73688159]
[1750980176293,7.1848,139.13,139.11,36.7]
[1750980177291,7.1848,139.13,139.1,3.73688159]
[1750980177594,7.1848,139.13,139.11,36.7]
[1750980178890,7.1848,139.13,139.1,3.73688159]
[1750980179097,7.1848,139.13,139.11,36.7]
[1750980179900,2.3936,139.17,139.12,3.73688159]
[1750980180195,87.75810183,139.19,139.14,3.73688159]
[1750980180385,7.1822,139.18,139.15,36.7]
[1750980180590,87.75810183,139.19,139.16,3.73688159]
[1750980180991,7.1821,139.18,139.16,3.73688159]
[1750980181191,87.75810183,139.19,139.16,3.73688159]
[1750980181391,87.75810183,139.19,139.15,36.7]
[1750980181392,87.75810183,139.19,139.18,3.73688159]
[1750980181593,87.75810183,139.19,139.16,36.7]
[1750980182192,94.93970183,139.19,139.16,36.7]
[1750980182500,87.75810183,139.19,139.17,3.73688159]
[1750980183296,7.1811,139.2,139.17,10.91908159]
[1750980183495,3.73688159,139.27,139.19,3.73688159]
[1750980183693,41.93598789,139.28,139.2,36.68]
[1750980183891,3.73688159,139.26,139.2,36.68]
[1750980184097,7.1803,139.21,139.2,36.68]
[1750980186892,7.1799,139.22,139.2,36.68]
[1750980187091,41.93598789,139.28,139.2,40.41688159]
[1750980187092,3.73688159,139.27,139.2,40.41688159]
[1750980187498,7.1796,139.23,139.2,40.41688159]
[1750980187698,3.73688159,139.27,139.2,40.41688159]
[1750980187896,41.93598789,139.28,139.22,3.73688159]
[1750980188097,7.1787,139.25,139.22,3.73688159]
[1750980189502,3.73688159,139.27,139.2,40.41688159]
[1750980189704,3.73688159,139.27,139.2,47.59768159]
[1750980190001,7.1793,139.24,139.2,47.59768159]
[1750980190404,3.73688159,139.27,139.2,40.41688159]
[1750980192396,7.1798,139.23,139.2,40.41688159]
[1750980193504,7.1798,139.23,139.21,36.66]
[1750980193697,3.73688159,139.25,139.18,36.66]
[1750980193899,3.73688159,139.25,139.18,40.39688159]
[1750980194304,7.1806,139.21,139.18,40.39688159]
[1750980194907,7.1806,139.21,139.18,47.57868159]
[1750980195205,7.18,139.22,139.18,47.57868159]
[1750980195504,7.18,139.22,139.2,3.73688159]
[1750980195895,7.1803,139.21,139.2,3.73688159]
[1750980196503,7.18,139.22,139.2,3.73688159]
[1750980197398,7.1803,139.21,139.18,47.57848159]
[1750980197594,5.33401137,139.24,139.2,3.73688159]
[1750980197799,40.39688159,139.27,139.18,36.66]
[1750980197800,5.33401137,139.26,139.18,36.66]
[1750980198007,5.33401137,139.25,139.2,3.73688159]
[1750980198209,7.179,139.24,139.2,10.91748159]
[1750980199296,7.1785,139.25,139.21,7.1803]
[1750980199516,7.1785,139.25,139.2,3.73688159]
[1750980199517,7.1785,139.25,139.22,40.39688159]
[1750980199704,3.73688159,139.28,139.22,36.66]
[1750980200013,3.73688159,139.26,139.22,36.66]
[1750980200216,5.31747256,139.25,139.22,36.66]
[1750980200414,3.73688159,139.26,139.22,36.66]
[1750980200603,7.1788,139.24,139.22,36.66]
[1750980200908,8.63928159,139.29,139.22,36.66]
[1750980201112,7.1791,139.24,139.22,36.66]
[1750980201312,3.73688159,139.27,139.22,36.66]
[1750980201516,5.34520208,139.26,139.22,36.66]
[1750980201714,7.1793,139.23,139.22,36.66]
[1750980202615,7.179,139.24,139.22,36.66]
[1750980202815,3.73688159,139.28,139.22,36.66]
[1750980203007,9.08474621,139.28,139.22,36.66]
[1750980203212,3.73688159,139.26,139.22,36.66]
[1750980203802,3.73688159,139.26,139.19,2.3935]
[1750980204008,3.73688159,139.26,139.2,36.82]
[1750980204418,5.13108845,139.25,139.2,36.82]
[1750980205113,11.80537019,139.29,139.2,36.82]
[1750980205321,7.1786,139.25,139.21,3.73688159]
[1750980205520,5.13622149,139.27,139.21,3.73688159]
[1750980205717,5.13622149,139.28,139.21,10.91688159]
[1750980205919,7.1785,139.25,139.21,3.73688159]
[1750980206523,7.1785,139.25,139.22,7.1795]
[1750980206921,7.1785,139.25,139.21,3.73688159]
[1750980208225,7.1785,139.25,139.22,7.1797]
[1750980209512,7.1785,139.25,139.21,10.91698159]
[1750980210120,7.1785,139.25,139.22,7.1798]
[1750980211528,7.1785,139.25,139.23,3.73688159]
[1750980212128,12.36921783,139.24,139.21,10.91698159]
[1750980212323,7.1788,139.24,139.21,10.91698159]
[1750980212825,7.1788,139.24,139.21,7.1801]
[1750980213018,4.9024,139.29,139.22,36.82]
[1750980213019,7.1793,139.23,139.22,36.82]
[1750980213932,7.179,139.24,139.22,36.82]
[1750980215526,7.1784,139.25,139.22,43.9997]
[1750980215728,5.20857005,139.24,139.22,43.9997]
[1750980216027,7.1784,139.25,139.22,43.9997]
[1750980216227,5.20857005,139.24,139.22,43.9997]
[1750980216429,7.1784,139.25,139.22,43.9997]
[1750980216626,5.21288658,139.24,139.22,43.9997]
[1750980216826,7.1784,139.25,139.22,43.9997]
[1750980217030,5.21288658,139.24,139.22,43.9997]
[1750980217331,7.1784,139.25,139.22,43.9997]
[1750980217521,5.21797259,139.24,139.23,7.1793]
[1750980217830,5.21797259,139.24,139.23,10.91618159]
[1750980218031,7.1779,139.26,139.23,10.91618159]
[1750980218224,7.1779,139.26,139.23,3.73688159]
[1750980219027,7.1779,139.26,139.23,10.91588159]
[1750980221132,11.84611078,139.25,139.22,36.82]
[1750980221431,7.1783,139.25,139.22,43.9995]
[1750980221835,2.3933,139.29,139.22,43.9995]
[1750980222131,7.1781,139.26,139.22,7.1795]
[1750980222333,4.3909307,139.25,139.23,36.82]
[1750980222533,6.13018159,139.29,139.23,36.82]
[1750980222834,11.85749073,139.28,139.23,36.82]
[1750980223029,11.85749073,139.27,139.23,36.82]
[1750980223333,19.03549073,139.26,139.23,36.82]
[1750980223633,11.85749073,139.25,139.23,43.9992]
[1750980223832,7.178,139.26,139.23,43.9992]
[1750980224028,11.86861272,139.25,139.23,43.9992]
[1750980224234,7.178,139.26,139.23,43.9992]
[1750980224528,19.06134523,139.25,139.23,36.82]
[1750980224734,7.1782,139.25,139.23,36.82]
[1750980225039,6.13018159,139.29,139.23,36.82]
[1750980225335,3.73688159,139.27,139.23,36.82]
[1750980225539,11.88315277,139.26,139.23,36.82]
[1750980225727,11.88315277,139.25,139.23,36.82]
[1750980225928,11.88315277,139.24,139.23,36.82]
[1750980226129,2.458549,139.24,139.23,36.82]
[1750980226631,9.637349,139.24,139.23,36.82]
[1750980227125,2.458549,139.24,139.23,36.82]
[1750980227541,7.1785,139.25,139.23,36.82]
[1750980227737,2.4602153,139.24,139.23,36.82]
[1750980230632,9.6390153,139.24,139.23,36.82]
[1750980230837,7.1788,139.24,139.23,36.82]
[1750980232943,7.1788,139.24,139.21,10.91698159]
[1750980233239,7.1788,139.24,139.22,36.56]
[1750980234834,7.1785,139.25,139.22,36.56]
[1750980235039,2.3933,139.29,139.23,7.1793]
[1750980235738,3.71160138,139.27,139.2,8.84034975]
[1750980235939,3.71160138,139.27,139.19,38.9535]
[1750980236237,3.71160138,139.27,139.17,2.3438]
[1750980236238,3.71305308,139.22,139.17,8.84034975]
[1750980236437,3.71305308,139.24,139.16,694.43324975]
[1750980236944,7.1809,139.2,139.18,6.71372513]
[1750980237432,3.71305308,139.25,139.18,6.71372513]
[1750980238035,3.71305308,139.25,139.19,6.71372513]
[1750980238234,3.71305308,139.25,139.2,43.27372513]
[1750980238736,3.71305308,139.25,139.2,36.56]
[1750980239241,7.1798,139.23,139.2,36.56]
[1750980239941,3.71305308,139.25,139.2,43.27372513]
[1750980240147,3.71305308,139.25,139.2,36.56]
[1750980241033,3.71305308,139.25,139.19,43.27372513]
[1750980241544,7.1803,139.21,139.19,36.56]
[1750980241940,7.1803,139.21,139.19,43.27372513]
[1750980242144,7.1803,139.21,139.19,36.56]
[1750980242743,7.1803,139.21,139.19,43.27372513]
[1750980243744,7.18,139.22,139.19,43.27372513]
[1750980244246,7.18,139.22,139.19,50.45502513]
[1750980245047,7.18,139.22,139.19,54.16807821]
[1750980245454,36.56,139.26,139.19,46.98677821]
[1750980245940,7.1798,139.22,139.19,54.16787821]
[1750980246141,7.1798,139.22,139.2,6.71372513]
[1750980246542,7.1795,139.23,139.2,13.89442513]
[1750980246745,3.71305308,139.28,139.21,10.42677821]
[1750980247146,7.1786,139.25,139.22,6.71372513]
[1750980247447,3.71305308,139.28,139.21,10.42677821]
[1750980247655,3.71305308,139.28,139.22,6.71372513]
[1750980247851,38.9533,139.29,139.23,40.27305308]
[1750980248042,3.71305308,139.3,139.23,46.98677821]
[1750980248353,2.4011,139.31,139.23,46.98677821]
[1750980248354,6.11415308,139.31,139.23,46.98677821]
[1750980248545,7.1775,139.27,139.23,54.16557821]
[1750980248745,7.1775,139.27,139.24,6.71372513]
[1750980249544,2.4011,139.31,139.24,6.71372513]
[1750980249751,2.4011,139.31,139.23,6.71372513]
[1750980249752,3.71305308,139.29,139.23,6.71372513]
[1750980250251,7.1776,139.27,139.23,13.89282513]
[1750980250552,7.1778,139.26,139.23,13.89282513]
[1750980250956,7.1778,139.26,139.23,6.71372513]
[1750980251145,7.1784,139.25,139.23,6.71372513]
[1750980252350,7.1788,139.24,139.23,6.71372513]
[1750980252653,3.71305308,139.27,139.21,6.71372513]
[1750980253848,7.1794,139.23,139.2,46.98677821]
[1750980254948,7.179,139.24,139.2,54.16757821]
[1750980255156,7.179,139.24,139.21,6.71372513]
[1750980255646,7.179,139.24,139.21,13.89382513]
[1750980255843,7.179,139.24,139.21,6.71372513]
[1750980257755,7.179,139.24,139.21,13.89392513]
[1750980258055,7.1783,139.25,139.21,6.71372513]
[1750980258252,7.1783,139.25,139.22,7.1795]
[1750980258458,7.1783,139.25,139.22,17.60627821]
[1750980259155,7.1783,139.25,139.23,6.71372513]
[1750980259956,7.1788,139.24,139.23,6.71372513]
[1750980260161,7.1788,139.24,139.22,17.60627821]
[1750980260555,40.27305308,139.29,139.22,17.60627821]
[1750980260856,40.27305308,139.29,139.23,6.71372513]
[1750980261460,40.27305308,139.29,139.23,13.89282513]
[1750980261650,3.71305308,139.29,139.24,36.56]
[1750980262057,7.1776,139.27,139.24,43.7388]
[1750980262748,7.1776,139.27,139.24,47.45185308]
[1750980263157,7.177,139.28,139.24,54.16557821]
[1750980263359,3.71305308,139.31,139.24,54.16557821]
[1750980264152,3.71305308,139.31,139.24,50.45252513]
[1750980264352,3.71305308,139.31,139.24,54.16557821]
[1750980264856,7.1775,139.27,139.24,40.27305308]
[1750980265347,7.177,139.28,139.24,47.45155308]
[1750980265753,7.177,139.28,139.24,54.16527821]
[1750980266059,7.177,139.28,139.25,7.1782]
[1750980266256,7.1763,139.29,139.25,6.71372513]
[1750980266463,3.71305308,139.31,139.25,6.71372513]
[1750980266665,7.1767,139.29,139.25,13.89172513]
[1750980267257,7.1767,139.28,139.25,13.89172513]
[1750980267559,3.71305308,139.31,139.25,13.89172513]
[1750980268064,7.1759,139.3,139.26,3.71305308]
[1750980268267,190.64383732,139.33,139.28,3.71305308]
[1750980268562,7.1749,139.32,139.29,7.1758]
[1750980269265,7.1752,139.31,139.28,47.42965308]
[1750980269465,7.1752,139.31,139.29,3.55540934]
[1750980269671,7.1752,139.31,139.3,3.55540934]
[1750980273861,190.64383732,139.33,139.29,36.54]
[1750980273862,7.1757,139.3,139.29,36.54]
[1750980274064,7.1757,139.3,139.29,40.14755357]
[1750980274366,7.1757,139.3,139.29,36.54]
[1750980274569,7.1753,139.31,139.29,40.14694895]
[1750980274874,7.1753,139.31,139.3,3.60684359]
[1750980275256,7.1753,139.31,139.29,36.54]
[1750980277175,7.1749,139.32,139.29,36.54]
[1750980277370,7.1749,139.32,139.3,3.60458777]
[1750980277565,7.1749,139.32,139.29,36.54]
[1750980277761,197.81823732,139.33,139.3,7.31764085]
[1750980277965,190.64383732,139.33,139.3,3.71305308]
[1750980278369,7.1748,139.32,139.3,3.71305308]
[1750980278571,190.64383732,139.33,139.3,3.71305308]
[1750980279375,7.1747,139.32,139.3,3.71305308]
[1750980279573,190.64383732,139.33,139.29,46.2742]
[1750980279574,190.64383732,139.33,139.29,39.0983]
[1750980279773,3.71305308,139.35,139.3,3.6029101]
[1750980279977,3.71305308,139.35,139.29,39.0983]
[1750980280174,3.71305308,139.35,139.3,3.6029101]
[1750980280367,3.71305308,139.35,139.29,39.0983]
[1750980280564,3.71305308,139.35,139.3,3.60216207]
[1750980280767,3.71305308,139.35,139.29,39.0983]
[1750980280973,7.1749,139.32,139.3,3.60216208]
[1750980281275,7.1749,139.32,139.29,46.2744]
[1750980281479,7.1749,139.32,139.3,3.60181573]
[1750980281779,7.1749,139.32,139.29,46.2744]
[1750980281978,7.1749,139.32,139.3,3.60181573]
[1750980282174,7.1753,139.31,139.29,39.0983]
[1750980282375,7.1753,139.31,139.3,3.60203581]
[1750980282574,3.71305308,139.35,139.3,3.60203581]
[1750980282775,3.71305308,139.35,139.29,39.0983]
[1750980282974,7.1751,139.32,139.3,3.60203581]
[1750980283173,7.1751,139.32,139.29,39.0983]
[1750980283374,7.1751,139.32,139.3,3.60226032]
[1750980283574,7.1751,139.32,139.29,39.0983]
[1750980283873,7.1751,139.32,139.3,3.59976461]
[1750980284074,7.1751,139.32,139.29,39.0983]
[1750980284380,7.1752,139.31,139.3,3.59976461]
[1750980285184,7.1749,139.32,139.3,3.59976461]
[1750980285378,7.1749,139.32,139.29,46.2745]
[1750980285680,7.1749,139.32,139.3,3.59963994]
[1750980285981,7.1749,139.32,139.29,46.2745]
[1750980286180,7.1749,139.32,139.3,3.59963995]
[1750980286375,7.1749,139.32,139.29,46.2745]
[1750980286582,7.1749,139.32,139.3,3.59935957]
[1750980286882,7.1752,139.31,139.29,39.0983]
[1750980287179,7.1752,139.31,139.3,3.60006526]
[1750980287984,3.71305308,139.31,139.23,41.5685]
[1750980288280,36.52,139.34,139.23,41.5685]
[1750980288281,3.71305308,139.29,139.23,5.0485]
[1750980288481,3.71305308,139.29,139.23,41.5685]
[1750980288682,3.71305308,139.29,139.23,39.0456]
[1750980288882,3.71305308,139.29,139.23,36.52]
[1750980289582,7.178,139.26,139.23,36.52]
[1750980289977,3.71305308,139.27,139.23,36.52]
[1750980290382,3.71305308,139.27,139.21,36.52]
[1750980290885,7.179,139.24,139.21,36.52]
[1750980292178,7.179,139.24,139.21,43.7003]
[1750980292382,7.179,139.24,139.21,36.52]
[1750980292579,7.179,139.24,139.19,11.76222513]
[1750980292580,3.71305308,139.28,139.19,55.44352513]
[1750980292774,3.71305308,139.25,139.19,48.26222513]
[1750980292978,7.179,139.24,139.19,48.26222513]
[1750980293579,7.179,139.24,139.2,7.1805]
[1750980294476,7.1794,139.23,139.2,7.1805]
[1750980299491,7.1794,139.23,139.21,7.1803]
[1750980299985,6.16655308,139.27,139.22,10.70770407]
[1750980300195,6.16655308,139.27,139.23,3.52790407]
[1750980300387,3.71305308,139.27,139.22,7.1798]
[1750980300590,7.1785,139.25,139.23,3.5191019]
[1750980300890,7.1785,139.25,139.22,7.1798]
[1750980301093,7.1785,139.25,139.23,3.5191019]
[1750980301296,7.1785,139.25,139.23,7.1793]
[1750980302489,7.1785,139.25,139.22,7.1794]
[1750980302795,7.1785,139.25,139.23,3.51939183]
[1750980303094,7.1785,139.25,139.22,7.1794]
[1750980303288,40.79378019,139.3,139.23,47.21845964]
[1750980303489,3.71305308,139.27,139.23,36.52]
[1750980303995,7.178,139.26,139.23,36.52]
[1750980304397,7.178,139.26,139.2,10.42677821]
[1750980304594,7.178,139.26,139.21,40.03924536]
[1750980304898,7.178,139.26,139.22,40.03924536]
[1750980305204,7.1784,139.25,139.23,3.51924536]
[1750980305499,7.1784,139.25,139.24,3.51925007]
[1750980305890,7.1784,139.25,139.22,7.1795]
[1750980306094,7.1784,139.25,139.23,3.51931664]
[1750980306296,7.1784,139.25,139.22,7.1795]
[1750980306492,7.1784,139.25,139.23,3.51920521]
[1750980306693,7.1784,139.25,139.22,43.6995]
[1750980306898,7.1784,139.25,139.23,3.51920489]
[1750980307097,7.1784,139.25,139.22,43.6995]
[1750980307396,7.1784,139.25,139.23,3.5192819]
[1750980307596,7.1784,139.25,139.22,7.1795]
[1750980307797,7.1784,139.25,139.23,3.51909533]
[1750980307993,7.1784,139.25,139.22,43.6995]
[1750980308195,7.1784,139.25,139.23,3.51909533]
[1750980308398,7.1784,139.25,139.22,7.1795]
[1750980308599,7.1788,139.24,139.2,36.52]
[1750980308800,7.1788,139.24,139.21,3.51911207]
[1750980309000,7.1788,139.24,139.2,36.52]
[1750980309199,7.1788,139.24,139.21,3.51689297]
[1750980309402,7.1793,139.23,139.22,3.51689297]
[1750980309789,3.71305308,139.25,139.2,36.52]
[1750980309996,3.71305308,139.25,139.21,3.51636591]
[1750980310190,3.71305308,139.25,139.2,36.52]
[1750980310394,3.71305308,139.25,139.21,3.51615987]
[1750980310595,3.71305308,139.25,139.2,36.52]
[1750980310908,3.71305308,139.25,139.21,3.51588798]
[1750980311201,3.71305308,139.25,139.2,36.52]
[1750980311399,3.71305308,139.25,139.21,3.51541088]
[1750980311591,3.71305308,139.25,139.2,36.52]
[1750980311790,3.71305308,139.25,139.21,3.51541088]
[1750980312005,7.1796,139.23,139.2,36.52]
[1750980312198,3.71305308,139.25,139.21,3.51541088]
[1750980312398,3.71305308,139.25,139.2,36.52]
[1750980312705,7.1799,139.22,139.21,3.51496484]
[1750980313106,7.1795,139.23,139.21,3.51496484]
[1750980313398,3.71305308,139.25,139.18,6.71372513]
[1750980313604,3.71305308,139.23,139.19,3.51686784]
[1750980313801,3.71305308,139.23,139.17,3.71305308]
[1750980314003,3.71305308,139.23,139.18,3.51706748]
[1750980314205,7.1806,139.21,139.17,10.89515308]
[1750980314405,7.1806,139.21,139.18,3.51645783]
[1750980314594,7.1806,139.21,139.19,3.51645783]
[1750980314792,7.1806,139.21,139.17,10.89515308]
[1750980315008,7.1806,139.21,139.18,3.51647228]
[1750980315208,7.1806,139.21,139.19,3.51647228]
[1750980315397,7.1806,139.21,139.17,10.89515308]
[1750980315704,40.23305308,139.25,139.19,3.71305308]
[1750980315901,40.23305308,139.25,139.2,3.51624047]
[1750980316098,40.23305308,139.25,139.19,3.71305308]
[1750980316295,40.23305308,139.25,139.2,3.51602753]
[1750980316503,7.1797,139.23,139.19,10.89415308]
[1750980316803,40.23305308,139.25,139.2,3.51605085]
[1750980317003,7.1801,139.22,139.19,10.89415308]
[1750980317203,7.1801,139.22,139.2,3.51605085]
[1750980317401,7.1801,139.22,139.19,10.89415308]
[1750980317602,7.1801,139.22,139.2,3.5160115]
[1750980317799,7.1801,139.22,139.19,10.89415308]
[1750980317995,7.1801,139.22,139.2,3.52266753]
[1750980318194,7.1801,139.22,139.19,10.89415308]
[1750980318398,7.1801,139.22,139.2,3.52260833]
[1750980318596,7.1804,139.21,139.18,2.3636]
[1750980318896,40.23305308,139.25,139.19,3.5227389]
[1750980318897,3.71305308,139.23,139.19,3.5227389]
[1750980319096,7.1793,139.23,139.18,40.23305308]
[1750980319301,36.52,139.25,139.19,3.52243514]
[1750980319497,36.52,139.25,139.18,40.23305308]
[1750980319693,7.1801,139.22,139.19,3.5223965]
[1750980319899,7.1801,139.22,139.18,40.23305308]
[1750980320097,7.1801,139.22,139.19,3.5223965]
[1750980320300,36.52,139.25,139.18,47.41465308]
[1750980320504,36.52,139.25,139.19,3.522549]
[1750980320703,36.52,139.25,139.18,47.41465308]
[1750980320902,7.1801,139.22,139.19,3.52254889]
[1750980321100,7.1801,139.22,139.18,47.41465308]
[1750980321306,7.1801,139.22,139.19,3.52253178]
[1750980321513,7.1801,139.22,139.18,47.41465308]
[1750980321702,7.1801,139.22,139.19,3.52278387]
[1750980321903,7.1801,139.22,139.18,47.41465308]
[1750980322102,7.1801,139.22,139.19,3.52278387]
[1750980322302,7.1801,139.22,139.18,47.41465308]
[1750980322504,7.1801,139.22,139.19,3.52310378]
[1750980322803,7.1801,139.22,139.18,47.41465308]
[1750980323006,3.71305308,139.24,139.19,3.52088456]
[1750980323201,3.71305308,139.24,139.18,36.52]
[1750980323510,3.71305308,139.24,139.19,3.52150137]
[1750980323698,7.1806,139.21,139.18,36.52]
[1750980323903,7.1806,139.21,139.19,3.52150137]
[1750980324103,7.1811,139.2,139.18,36.52]
[1750980324300,7.1811,139.2,139.19,3.52155288]
[1750980325909,7.1813,139.19,139.17,36.5]
[1750980326109,7.1813,139.19,139.18,3.52316512]
[1750980326599,38.8284,139.25,139.18,3.52316512]
[1750980326807,3.71305308,139.24,139.19,3.5238226]
[1750980327007,3.71305308,139.24,139.17,13.89582513]
[1750980327204,3.71305308,139.24,139.18,3.52375633]
[1750980327401,3.71305308,139.24,139.19,3.52375633]
[1750980327607,3.71305308,139.24,139.2,3.52375633]
[1750980327814,3.71305308,139.24,139.17,13.89582513]
[1750980328112,7.1807,139.21,139.18,3.52727054]
[1750980328310,7.1807,139.21,139.19,3.52727054]
[1750980328616,7.1807,139.21,139.2,3.52727054]
[1750980328815,7.1807,139.21,139.18,3.52727054]
[1750980329015,7.1807,139.21,139.19,3.52727054]
[1750980329312,7.18,139.22,139.2,3.52727054]
[1750980329615,42.54145308,139.25,139.21,3.52727054]
[1750980329809,42.54145308,139.25,139.19,36.5]
[1750980330005,7.1803,139.21,139.2,3.53041747]
[1750980332606,10.89335308,139.21,139.2,1.747e-05]
[1750980332819,40.21305308,139.21,139.16,6.71372513]
[1750980333007,3.71305308,139.17,139.14,6.71372513]
[1750980333415,3.71305308,139.17,139.12,8.84034975]
[1750980333416,7.1839,139.14,139.13,6.71372513]
[1750980334220,10.98525308,139.2,139.11,43.21372513]
[1750980334221,7.1844,139.13,139.11,43.21372513]
[1750980334623,7.1844,139.13,139.11,6.71372513]
[1750980335323,7.1849,139.12,139.11,6.71372513]
[1750980335622,3.71305308,139.14,139.1,43.23372513]
[1750980335820,7.186,139.1,139.08,6.71372513]
[1750980336017,7.186,139.1,139.07,9.21442513]
[1750980336420,7.186,139.1,139.07,2.5007]
[1750980336713,7.1867,139.09,139.07,2.5007]
[1750980336925,7.1867,139.09,139.06,43.23372513]
[1750980337118,3.71305308,139.12,139.06,43.23372513]
[1750980337315,3.71305308,139.12,139.06,36.52]
[1750980337727,7.187,139.08,139.06,36.52]
[1750980339132,36.52,139.13,139.04,41.3664]
[1750980339133,3.71305308,139.1,139.04,41.3664]
[1750980339532,7.1873,139.08,139.04,48.5555]
[1750980339837,40.23305308,139.13,139.05,3.71305308]
[1750980340035,7.1863,139.1,139.06,7.1879]
[1750980340938,36.52,139.13,139.07,3.71305308]
[1750980341134,6.02205308,139.15,139.08,36.52]
[1750980341440,7.1847,139.13,139.09,7.1864]
[1750980341832,7.185,139.12,139.09,7.1864]
[1750980342840,7.185,139.12,139.08,46.2464]
[1750980343539,3.71305308,139.15,139.09,7.1862]
[1750980343930,3.71305308,139.15,139.09,10.89925308]
[1750980344434,7.1846,139.13,139.09,10.89925308]
[1750980345240,7.185,139.12,139.09,10.89925308]
[1750980352841,7.1859,139.11,139.08,46.2464]
[1750980353244,7.1859,139.11,139.08,9.7264]
[1750980353438,3.71305308,139.13,139.08,39.0596]
[1750980354144,7.1856,139.11,139.08,39.0596]
[1750980354345,7.1856,139.11,139.08,46.2466]
[1750980357449,7.1856,139.11,139.08,39.0596]
[1750980358144,3.71305308,139.13,139.08,36.52]
[1750980358551,3.71305308,139.13,139.06,7.1879]
[1750980358751,3.71305308,139.13,139.06,43.7079]
[1750980359446,7.1863,139.1,139.06,43.7079]
[1750980359850,7.1866,139.09,139.06,7.1879]
[1750980360048,7.1866,139.09,139.07,36.52]
[1750980361342,3.71305308,139.13,139.07,36.52]
[1750980361552,3.71305308,139.15,139.08,3.71305308]
[1750980362556,7.1858,139.11,139.08,10.89975308]
[1750980362958,7.1858,139.11,139.07,36.52]
[1750980363561,7.1858,139.11,139.07,43.7073]
[1750980364455,7.186,139.1,139.07,43.7073]
[1750980366560,214.85557216,139.17,139.07,36.52]
[1750980366760,3.71305308,139.14,139.07,36.52]
[1750980367160,3.71305308,139.14,139.07,43.7075]
[1750980367856,7.1858,139.11,139.08,7.187]
[1750980368254,7.1858,139.11,139.07,43.7073]
[1750980369162,7.1861,139.1,139.07,43.7073]
[1750980371165,3.71305308,139.15,139.08,10.39264905]
[1750980371763,7.1852,139.12,139.09,7.1862]
[1750980373766,3.71305308,139.15,139.08,17.57944905]
[1750980373767,7.1855,139.11,139.08,17.57944905]
[1750980374057,7.1855,139.11,139.08,10.39264905]
[1750980374262,7.1855,139.11,139.09,6.67959597]
[1750980375562,7.1855,139.11,139.09,13.86599597]
[1750980376265,7.1852,139.12,139.1,6.67959597]
[1750980378261,7.1852,139.12,139.11,6.67959597]
[1750980384168,7.1847,139.13,139.11,6.67959597]
[1750980384368,7.1847,139.13,139.12,6.67959597]
[1750980389667,214.85557216,139.17,139.12,6.67959597]
[1750980389866,214.85557216,139.17,139.14,3.71305308]
[1750980389867,4.15395863,139.16,139.14,3.71305308]
[1750980390066,178.33557216,139.17,139.14,10.39264905]
[1750980390268,36.5,139.21,139.16,3.71305308]
[1750980390467,6.15345308,139.23,139.17,3.63075601]
[1750980390664,6.15345308,139.23,139.18,3.63075601]
[1750980390870,6.15345308,139.23,139.19,3.63075601]
[1750980391067,6.15345308,139.23,139.18,6.67959597]
[1750980391273,6.15345308,139.23,139.19,3.64312919]
[1750980391471,6.15345308,139.23,139.2,3.64312919]
[1750980391668,7.1808,139.2,139.17,13.86189597]
[1750980391862,7.1808,139.2,139.18,3.64024489]
[1750980392075,6.15345308,139.23,139.19,3.64024489]